[Event "Titled Tuesday Blitz May 25 2021"]
[White "Fernandez, Daniel Howard"]
[Black "Khumalo, Keith"]
[WhiteFideId "5801605"]
[BlackFideId "14319470"]
[WhiteElo "2784"]
[BlackElo "2570"]
[Result "1-0"]
[Round "05"]
[TimeControl "180+1"]
[Date "2021.05.25"]
[WhiteClock "0:00:54"]
[BlackClock "0:00:42"]

1. c4 {[%clk 0:03:00]}  c5 {[%clk 0:02:58]} 2. g3 {[%clk 0:02:59]}  Nc6 {[%clk 0:02:57]} 3. Bg2 {[%clk 0:02:59]}  g6 {[%clk 0:02:58]} 4. Nc3 {[%clk 0:02:49]}  Bg7 {[%clk 0:02:57]} 5. d3 {[%clk 0:02:49]}  d6 {[%clk 0:02:56]} 6. Bd2 {[%clk 0:02:40]}  e6 {[%clk 0:02:55]} 7. Nf3 {[%clk 0:02:32]}  Nge7 {[%clk 0:02:52]} 8. h4 {[%clk 0:02:32]}  h5 {[%clk 0:02:51]} 9. Qc1 {[%clk 0:02:29]}  b6 {[%clk 0:02:51]} 10. Rb1 {[%clk 0:02:28]}  Bb7 {[%clk 0:02:51]} 11. a3 {[%clk 0:02:28]}  d5 {[%clk 0:02:51]} 12. O-O {[%clk 0:02:25]}  Rc8 {[%clk 0:02:47]} 13. Bg5 {[%clk 0:02:20]}  O-O {[%clk 0:02:37]} 14. cxd5 {[%clk 0:02:14]}  exd5 {[%clk 0:02:38]} 15. Bh6 {[%clk 0:02:14]}  Bxh6 {[%clk 0:02:34]} 16. Qxh6 {[%clk 0:02:13]}  Nf5 {[%clk 0:02:35]} 17. Qf4 {[%clk 0:02:11]}  Re8 {[%clk 0:02:27]} 18. e4 {[%clk 0:02:07]}  dxe4 {[%clk 0:02:27]} 19. dxe4 {[%clk 0:02:07]}  Nfd4 {[%clk 0:02:27]} 20. e5 {[%clk 0:02:07]}  Ne6 {[%clk 0:02:14]} 21. Qe3 {[%clk 0:02:07]}  Ncd4 {[%clk 0:02:13]} 22. Ne4 {[%clk 0:02:04]}  Bxe4 {[%clk 0:02:11]} 23. Qxe4 {[%clk 0:02:05]}  Nxf3+ {[%clk 0:02:10]} 24. Qxf3 {[%clk 0:02:04]}  Nd4 {[%clk 0:02:08]} 25. Qe3 {[%clk 0:02:04]}  Qc7 {[%clk 0:02:06]} 26. f4 {[%clk 0:02:04]}  Rcd8 {[%clk 0:02:04]} 27. Kh2 {[%clk 0:02:04]}  Qd7 {[%clk 0:02:01]} 28. Rbd1 {[%clk 0:02:03]}  Qb5 {[%clk 0:02:00]} 29. Rd2 {[%clk 0:02:01]}  Nf5 {[%clk 0:02:00]} 30. Qc3 {[%clk 0:01:59]}  Rd4 {[%clk 0:01:57]} 31. Rfd1 {[%clk 0:01:56]}  Red8 {[%clk 0:01:55]} 32. Be4 {[%clk 0:01:57]}  Rxd2+ {[%clk 0:01:52]} 33. Rxd2 {[%clk 0:01:58]}  Rxd2+ {[%clk 0:01:51]} 34. Qxd2 {[%clk 0:01:59]}  Nd4 {[%clk 0:01:51]} 35. b4 {[%clk 0:01:56]}  Qc4 {[%clk 0:01:49]} 36. f5 {[%clk 0:01:43]}  Kg7 {[%clk 0:01:32]} 37. f6+ {[%clk 0:01:32]}  Kh7 {[%clk 0:01:31]} 38. bxc5 {[%clk 0:01:23]}  bxc5 {[%clk 0:01:30]} 39. Qb2 {[%clk 0:01:23]}  Qf1 {[%clk 0:01:24]} 40. Qb7 {[%clk 0:01:18]}  Qe2+ {[%clk 0:01:14]} 41. Bg2 {[%clk 0:01:17]}  Qc4 {[%clk 0:01:14]} 42. Qxa7 {[%clk 0:01:13]}  Ne2 {[%clk 0:00:54]} 43. Qb7 {[%clk 0:01:02]}  Nd4 {[%clk 0:00:52]} 44. a4 {[%clk 0:01:00]}  Ne6 {[%clk 0:00:47]} 45. Qxf7+ {[%clk 0:00:58]}  Kh6 {[%clk 0:00:42]} 46. Qg8 {[%clk 0:00:54]} 1-0


[Site "https://www.chess.com"]

[Event "Titled Tuesday Blitz May 25 2021"]
[White "Gabrielian, Artur"]
[Black "Garcia Ramos, Daniel"]
[WhiteFideId "4131002"]
[BlackFideId "32010311"]
[WhiteElo "2774"]
[BlackElo "2571"]
[Result "1-0"]
[Round "05"]
[TimeControl "180+1"]
[Date "2021.05.25"]
[WhiteClock "0:00:10"]
[BlackClock "0:00:04"]

1. e4 {[%clk 0:03:00]}  c6 {[%clk 0:03:00]} 2. d4 {[%clk 0:03:00]}  d5 {[%clk 0:03:00]} 3. Nd2 {[%clk 0:03:00]}  dxe4 {[%clk 0:03:00]} 4. Nxe4 {[%clk 0:03:01]}  Nf6 {[%clk 0:03:01]} 5. Nxf6+ {[%clk 0:03:01]}  exf6 {[%clk 0:03:02]} 6. c3 {[%clk 0:02:59]}  Bd6 {[%clk 0:03:02]} 7. Bd3 {[%clk 0:03:00]}  Na6 {[%clk 0:03:02]} 8. Qc2 {[%clk 0:02:57]}  h5 {[%clk 0:03:01]} 9. Ne2 {[%clk 0:02:57]}  Nc7 {[%clk 0:03:02]} 10. O-O {[%clk 0:02:53]}  h4 {[%clk 0:03:02]} 11. h3 {[%clk 0:02:54]}  O-O {[%clk 0:03:00]} 12. Bd2 {[%clk 0:02:51]}  Nd5 {[%clk 0:02:58]} 13. a3 {[%clk 0:02:44]}  b5 {[%clk 0:02:57]} 14. c4 {[%clk 0:02:41]}  bxc4 {[%clk 0:02:57]} 15. Qxc4 {[%clk 0:02:41]}  Bd7 {[%clk 0:02:42]} 16. Nc3 {[%clk 0:02:35]}  Nb6 {[%clk 0:02:39]} 17. Qa2 {[%clk 0:02:30]}  Be6 {[%clk 0:02:36]} 18. Qb1 {[%clk 0:02:29]}  Bc7 {[%clk 0:02:33]} 19. Ne2 {[%clk 0:02:25]}  Nd5 {[%clk 0:02:31]} 20. Qc2 {[%clk 0:02:20]}  Qd6 {[%clk 0:02:30]} 21. f4 {[%clk 0:02:20]}  Rfe8 {[%clk 0:02:27]} 22. Rac1 {[%clk 0:02:13]}  Bd7 {[%clk 0:02:27]} 23. Rf2 {[%clk 0:01:48]}  Re7 {[%clk 0:02:20]} 24. Qc5 {[%clk 0:01:31]}  Rae8 {[%clk 0:02:16]} 25. Qxd6 {[%clk 0:01:30]}  Bxd6 {[%clk 0:02:16]} 26. Nc3 {[%clk 0:01:25]}  Ne3 {[%clk 0:01:41]} 27. Re1 {[%clk 0:01:11]}  Nf5 {[%clk 0:01:40]} 28. Rxe7 {[%clk 0:01:10]}  Rxe7 {[%clk 0:01:39]} 29. Bxf5 {[%clk 0:00:58]}  Bxf5 {[%clk 0:01:39]} 30. Re2 {[%clk 0:00:58]}  Rd7 {[%clk 0:01:26]} 31. Re8+ {[%clk 0:00:54]}  Kh7 {[%clk 0:01:26]} 32. Be3 {[%clk 0:00:54]}  Bc7 {[%clk 0:01:24]} 33. Na4 {[%clk 0:00:51]}  Bd8 {[%clk 0:00:51]} 34. Nc5 {[%clk 0:00:48]}  Rd5 {[%clk 0:00:52]} 35. b4 {[%clk 0:00:41]}  g5 {[%clk 0:00:47]} 36. fxg5 {[%clk 0:00:14]}  fxg5 {[%clk 0:00:48]} 37. Re5 {[%clk 0:00:13]}  Rxe5 {[%clk 0:00:25]} 38. dxe5 {[%clk 0:00:14]}  Kg6 {[%clk 0:00:25]} 39. Kf2 {[%clk 0:00:13]}  Bc7 {[%clk 0:00:23]} 40. Nb7 {[%clk 0:00:12]}  a6 {[%clk 0:00:12]} 41. Nc5 {[%clk 0:00:11]}  Bc8 {[%clk 0:00:09]} 42. Bd4 {[%clk 0:00:11]}  Kf5 {[%clk 0:00:09]} 43. Ke3 {[%clk 0:00:11]}  Bxe5 {[%clk 0:00:09]} 44. Bxe5 {[%clk 0:00:10]}  Kxe5 {[%clk 0:00:10]} 45. Nd3+ {[%clk 0:00:09]}  Kd5 {[%clk 0:00:10]} 46. Nb2 {[%clk 0:00:08]}  f5 {[%clk 0:00:09]} 47. Kd3 {[%clk 0:00:08]}  f4 {[%clk 0:00:09]} 48. Nd1 {[%clk 0:00:08]}  Bf5+ {[%clk 0:00:07]} 49. Kd2 {[%clk 0:00:08]}  Kd4 {[%clk 0:00:07]} 50. Nc3 {[%clk 0:00:08]}  f3 {[%clk 0:00:06]} 51. gxf3 {[%clk 0:00:08]}  Bxh3 {[%clk 0:00:07]} 52. Ne4 {[%clk 0:00:08]}  g4 {[%clk 0:00:04]} 53. Nf2 {[%clk 0:00:09]}  Ke5 {[%clk 0:00:02]} 54. fxg4 {[%clk 0:00:08]}  Bg2 {[%clk 0:00:03]} 55. Ke3 {[%clk 0:00:08]}  h3 {[%clk 0:00:03]} 56. Nd3+ {[%clk 0:00:09]}  Kd5 {[%clk 0:00:02]} 57. Kf2 {[%clk 0:00:09]}  Be4 {[%clk 0:00:03]} 58. Nf4+ {[%clk 0:00:09]}  Kc4 {[%clk 0:00:03]} 59. Nxh3 {[%clk 0:00:09]}  Kb3 {[%clk 0:00:03]} 60. Ke3 {[%clk 0:00:09]}  Bb1 {[%clk 0:00:03]} 61. Kd4 {[%clk 0:00:10]}  Kxa3 {[%clk 0:00:03]} 62. Kc3 {[%clk 0:00:10]}  Ka4 {[%clk 0:00:02]} 63. Nf4 {[%clk 0:00:10]}  a5 {[%clk 0:00:03]} 64. bxa5 {[%clk 0:00:11]}  Kxa5 {[%clk 0:00:03]} 65. Kd4 {[%clk 0:00:11]}  Kb4 {[%clk 0:00:03]} 66. Ne6 {[%clk 0:00:12]}  Kb5 {[%clk 0:00:02]} 67. g5 {[%clk 0:00:11]}  Bg6 {[%clk 0:00:01]} 68. Ke5 {[%clk 0:00:10]}  c5 {[%clk 0:00:02]} 69. Kf6 {[%clk 0:00:11]}  Bd3 {[%clk 0:00:01]} 70. Nf4 {[%clk 0:00:11]}  Bc2 {[%clk 0:00:02]} 71. Nd5 {[%clk 0:00:10]}  Kc6 {[%clk 0:00:01]} 72. Ne3 {[%clk 0:00:10]}  Be4 {[%clk 0:00:01]} 73. Ke5 {[%clk 0:00:10]}  Bd3 {[%clk 0:00:02]} 74. Nf5 {[%clk 0:00:10]}  c4 {[%clk 0:00:02]} 75. g6 {[%clk 0:00:10]}  c3 {[%clk 0:00:02]} 76. g7 {[%clk 0:00:10]}  Bc4 {[%clk 0:00:03]} 77. Nd4+ {[%clk 0:00:09]}  Kc5 {[%clk 0:00:02]} 78. Ne6+ {[%clk 0:00:09]}  Bxe6 {[%clk 0:00:01]} 79. Kxe6 {[%clk 0:00:09]}  Kb4 {[%clk 0:00:02]} 80. g8=Q {[%clk 0:00:10]}  Kb3 {[%clk 0:00:02]} 81. Qb8+ {[%clk 0:00:09]}  Kc2 {[%clk 0:00:02]} 82. Kd5 {[%clk 0:00:09]}  Kd2 {[%clk 0:00:03]} 83. Kd4 {[%clk 0:00:09]}  c2 {[%clk 0:00:03]} 84. Qh2+ {[%clk 0:00:10]}  Kc1 {[%clk 0:00:03]} 85. Kc3 {[%clk 0:00:10]}  Kb1 {[%clk 0:00:04]} 86. Qxc2+ {[%clk 0:00:10]}  Ka1 {[%clk 0:00:04]} 87. Qb2# {[%clk 0:00:10]} 1-0


[Site "https://www.chess.com"]

[Event "Titled Tuesday Blitz May 25 2021"]
[White "Ghimpu, Samuel-Timotei"]
[Black "Jones, Gawain C B"]
[WhiteFideId "1238175"]
[BlackFideId "409561"]
[WhiteElo "2026"]
[BlackElo "2657"]
[Result "0-1"]
[Round "05"]
[TimeControl "180+1"]
[Date "2021.05.25"]
[WhiteClock "0:00:01"]
[BlackClock "0:00:12"]

1. b3 {[%clk 0:02:48]}  e5 {[%clk 0:02:58]} 2. Bb2 {[%clk 0:02:49]}  Nc6 {[%clk 0:02:58]} 3. c4 {[%clk 0:02:49]}  Nf6 {[%clk 0:02:57]} 4. Nc3 {[%clk 0:02:45]}  d5 {[%clk 0:02:57]} 5. cxd5 {[%clk 0:02:43]}  Nxd5 {[%clk 0:02:58]} 6. e3 {[%clk 0:02:40]}  Nxc3 {[%clk 0:02:55]} 7. Bxc3 {[%clk 0:02:37]}  Bd6 {[%clk 0:02:55]} 8. Nf3 {[%clk 0:02:29]}  Bd7 {[%clk 0:02:54]} 9. Be2 {[%clk 0:02:28]}  e4 {[%clk 0:02:43]} 10. Nd4 {[%clk 0:02:22]}  Nxd4 {[%clk 0:02:42]} 11. Bxd4 {[%clk 0:02:23]}  Qg5 {[%clk 0:02:42]} 12. g3 {[%clk 0:01:50]}  Be5 {[%clk 0:02:40]} 13. Bxe5 {[%clk 0:01:37]}  Qxe5 {[%clk 0:02:41]} 14. Rc1 {[%clk 0:01:38]}  Bh3 {[%clk 0:02:30]} 15. Qc2 {[%clk 0:01:35]}  O-O-O {[%clk 0:02:30]} 16. Qc5 {[%clk 0:01:09]}  Qd6 {[%clk 0:02:27]} 17. Qxd6 {[%clk 0:01:07]}  Rxd6 {[%clk 0:02:27]} 18. Rg1 {[%clk 0:00:58]}  Be6 {[%clk 0:02:19]} 19. f3 {[%clk 0:00:56]}  Rhd8 {[%clk 0:02:18]} 20. Rc2 {[%clk 0:00:52]}  exf3 {[%clk 0:02:15]} 21. Bxf3 {[%clk 0:00:53]}  Bf5 {[%clk 0:02:16]} 22. Rb2 {[%clk 0:00:52]}  g6 {[%clk 0:02:08]} 23. d4 {[%clk 0:00:49]}  c5 {[%clk 0:02:01]} 24. dxc5 {[%clk 0:00:36]}  Rd3 {[%clk 0:02:01]} 25. Ke2 {[%clk 0:00:36]}  Rc3 {[%clk 0:01:56]} 26. Rd1 {[%clk 0:00:19]}  Rxd1 {[%clk 0:01:54]} 27. Kxd1 {[%clk 0:00:20]}  Rxe3 {[%clk 0:01:54]} 28. Be2 {[%clk 0:00:16]}  a5 {[%clk 0:01:48]} 29. Kd2 {[%clk 0:00:17]}  Re5 {[%clk 0:01:47]} 30. Bc4 {[%clk 0:00:15]}  f6 {[%clk 0:01:43]} 31. c6 {[%clk 0:00:11]}  bxc6 {[%clk 0:01:43]} 32. Kc3 {[%clk 0:00:11]}  Kc7 {[%clk 0:01:42]} 33. Rd2 {[%clk 0:00:11]}  h5 {[%clk 0:01:39]} 34. a3 {[%clk 0:00:07]}  h4 {[%clk 0:01:36]} 35. gxh4 {[%clk 0:00:05]}  Re3+ {[%clk 0:01:36]} 36. Kb2 {[%clk 0:00:05]}  Rh3 {[%clk 0:01:35]} 37. Rg2 {[%clk 0:00:03]}  Rxh4 {[%clk 0:01:32]} 38. Bf7 {[%clk 0:00:03]}  Kd6 {[%clk 0:01:11]} 39. Bxg6 {[%clk 0:00:02]}  Bxg6 {[%clk 0:01:11]} 40. Rxg6 {[%clk 0:00:03]}  Rxh2+ {[%clk 0:01:12]} 41. Kc3 {[%clk 0:00:04]}  Ke5 {[%clk 0:01:11]} 42. Rg8 {[%clk 0:00:02]}  Rh5 {[%clk 0:01:00]} 43. Rc8 {[%clk 0:00:01]}  Kd6 {[%clk 0:00:56]} 44. Kc4 {[%clk 0:00:01]}  Rh4+ {[%clk 0:00:55]} 45. Kc3 {[%clk 0:00:01]}  a4 {[%clk 0:00:55]} 46. bxa4 {[%clk 0:00:01]}  Rxa4 {[%clk 0:00:54]} 47. Kb3 {[%clk 0:00:02]}  Rf4 {[%clk 0:00:51]} 48. a4 {[%clk 0:00:02]}  Kc5 {[%clk 0:00:50]} 49. Rf8 {[%clk 0:00:01]}  Rf3+ {[%clk 0:00:50]} 50. Kb2 {[%clk 0:00:01]}  Kb4 {[%clk 0:00:50]} 51. Rc8 {[%clk 0:00:02]}  Rf2+ {[%clk 0:00:48]} 52. Kc1 {[%clk 0:00:02]}  c5 {[%clk 0:00:44]} 53. a5 {[%clk 0:00:02]}  c4 {[%clk 0:00:40]} 54. a6 {[%clk 0:00:03]}  Ra2 {[%clk 0:00:40]} 55. Rc6 {[%clk 0:00:02]}  f5 {[%clk 0:00:38]} 56. Rf6 {[%clk 0:00:03]}  Kc3 {[%clk 0:00:36]} 57. Kb1 {[%clk 0:00:03]}  Ra5 {[%clk 0:00:36]} 58. a7 {[%clk 0:00:02]}  Kd3 {[%clk 0:00:20]} 59. Rxf5 {[%clk 0:00:01]}  Rxa7 {[%clk 0:00:20]} 60. Rf3+ {[%clk 0:00:02]}  Kd2 {[%clk 0:00:20]} 61. Rf2+ {[%clk 0:00:02]}  Ke3 {[%clk 0:00:20]} 62. Rh2 {[%clk 0:00:02]}  Kd3 {[%clk 0:00:19]} 63. Rh3+ {[%clk 0:00:02]}  Kd2 {[%clk 0:00:19]} 64. Rh2+ {[%clk 0:00:03]}  Kc3 {[%clk 0:00:19]} 65. Rh3+ {[%clk 0:00:03]}  Kb4 {[%clk 0:00:19]} 66. Kb2 {[%clk 0:00:03]}  Rg7 {[%clk 0:00:19]} 67. Rf3 {[%clk 0:00:03]}  Rg2+ {[%clk 0:00:19]} 68. Kc1 {[%clk 0:00:02]}  Ra2 {[%clk 0:00:19]} 69. Kb1 {[%clk 0:00:02]}  Rd2 {[%clk 0:00:19]} 70. Kc1 {[%clk 0:00:02]}  Rh2 {[%clk 0:00:18]} 71. Rg3 {[%clk 0:00:03]}  Rh8 {[%clk 0:00:13]} 72. Rf3 {[%clk 0:00:02]}  Ra8 {[%clk 0:00:11]} 73. Rg3 {[%clk 0:00:01]}  c3 {[%clk 0:00:12]} 0-1


[Site "https://www.chess.com"]

[Event "Titled Tuesday Blitz May 25 2021"]
[White "Goltsev, Dmitry"]
[Black "Maiorov, Nikita"]
[WhiteFideId "24176710"]
[BlackFideId "13501720"]
[WhiteElo "2366"]
[BlackElo "2440"]
[Result "1-0"]
[Round "05"]
[TimeControl "180+1"]
[Date "2021.05.25"]
[WhiteClock "0:00:05"]
[BlackClock "0:00:01"]

1. e4 {[%clk 0:02:59]}  e5 {[%clk 0:02:59]} 2. Nf3 {[%clk 0:02:59]}  Nc6 {[%clk 0:02:58]} 3. Bb5 {[%clk 0:02:58]}  a6 {[%clk 0:02:57]} 4. Ba4 {[%clk 0:02:58]}  Nf6 {[%clk 0:02:57]} 5. O-O {[%clk 0:02:58]}  Be7 {[%clk 0:02:56]} 6. Re1 {[%clk 0:02:41]}  b5 {[%clk 0:02:54]} 7. Bb3 {[%clk 0:02:42]}  d6 {[%clk 0:02:54]} 8. c3 {[%clk 0:02:42]}  O-O {[%clk 0:02:53]} 9. h3 {[%clk 0:02:39]}  Na5 {[%clk 0:02:53]} 10. Bc2 {[%clk 0:02:39]}  c5 {[%clk 0:02:52]} 11. d4 {[%clk 0:02:39]}  Nd7 {[%clk 0:02:51]} 12. d5 {[%clk 0:02:37]}  Nb6 {[%clk 0:02:49]} 13. Nbd2 {[%clk 0:02:37]}  Qc7 {[%clk 0:02:47]} 14. Nf1 {[%clk 0:02:37]}  Nb7 {[%clk 0:02:40]} 15. g4 {[%clk 0:02:36]}  Bd7 {[%clk 0:02:37]} 16. Ng3 {[%clk 0:02:36]}  g6 {[%clk 0:02:36]} 17. Bh6 {[%clk 0:02:34]}  Rfe8 {[%clk 0:02:36]} 18. b3 {[%clk 0:02:34]}  c4 {[%clk 0:02:35]} 19. b4 {[%clk 0:02:34]}  a5 {[%clk 0:02:35]} 20. a3 {[%clk 0:02:32]}  Kh8 {[%clk 0:02:32]} 21. Ng5 {[%clk 0:02:29]}  f6 {[%clk 0:02:27]} 22. Nf3 {[%clk 0:02:21]}  Nd8 {[%clk 0:02:26]} 23. Be3 {[%clk 0:01:42]}  Nf7 {[%clk 0:02:26]} 24. Qd2 {[%clk 0:01:37]}  Ra6 {[%clk 0:02:24]} 25. Reb1 {[%clk 0:00:58]}  Rea8 {[%clk 0:02:22]} 26. Qc1 {[%clk 0:00:55]}  Bf8 {[%clk 0:02:01]} 27. Kh2 {[%clk 0:00:53]}  Kg8 {[%clk 0:01:18]} 28. Nh4 {[%clk 0:00:50]}  Be7 {[%clk 0:01:15]} 29. Ng2 {[%clk 0:00:48]}  Ng5 {[%clk 0:01:14]} 30. Bd1 {[%clk 0:00:45]}  Nf7 {[%clk 0:01:06]} 31. h4 {[%clk 0:00:44]}  Qc8 {[%clk 0:01:04]} 32. bxa5 {[%clk 0:00:41]}  Na4 {[%clk 0:01:00]} 33. Bxa4 {[%clk 0:00:41]}  bxa4 {[%clk 0:01:00]} 34. f3 {[%clk 0:00:40]}  Rxa5 {[%clk 0:00:59]} 35. Qc2 {[%clk 0:00:40]}  Rb5 {[%clk 0:00:48]} 36. Rxb5 {[%clk 0:00:38]}  Bxb5 {[%clk 0:00:47]} 37. Rb1 {[%clk 0:00:39]}  Bd7 {[%clk 0:00:47]} 38. Rb4 {[%clk 0:00:37]}  Rb8 {[%clk 0:00:44]} 39. Qb2 {[%clk 0:00:36]}  Rxb4 {[%clk 0:00:43]} 40. Qxb4 {[%clk 0:00:37]}  Kg7 {[%clk 0:00:40]} 41. Bb6 {[%clk 0:00:34]}  Qa6 {[%clk 0:00:38]} 42. Ne3 {[%clk 0:00:31]}  Bb5 {[%clk 0:00:37]} 43. Qa5 {[%clk 0:00:29]}  Qxa5 {[%clk 0:00:36]} 44. Bxa5 {[%clk 0:00:29]}  Nd8 {[%clk 0:00:34]} 45. Ngf1 {[%clk 0:00:25]}  Nb7 {[%clk 0:00:34]} 46. Bb6 {[%clk 0:00:24]}  f5 {[%clk 0:00:30]} 47. gxf5 {[%clk 0:00:22]}  Bxh4 {[%clk 0:00:29]} 48. Nd2 {[%clk 0:00:23]}  Be1 {[%clk 0:00:23]} 49. Ndxc4 {[%clk 0:00:19]}  Bxc3 {[%clk 0:00:21]} 50. Bc7 {[%clk 0:00:19]}  Bd4 {[%clk 0:00:19]} 51. Bxd6 {[%clk 0:00:17]}  Nxd6 {[%clk 0:00:15]} 52. Nxd6 {[%clk 0:00:18]}  Bd7 {[%clk 0:00:11]} 53. Nc2 {[%clk 0:00:16]}  Bb2 {[%clk 0:00:10]} 54. fxg6 {[%clk 0:00:15]}  hxg6 {[%clk 0:00:09]} 55. Kg3 {[%clk 0:00:13]}  Kf6 {[%clk 0:00:09]} 56. Nc4 {[%clk 0:00:12]}  Bc3 {[%clk 0:00:08]} 57. Nb6 {[%clk 0:00:10]}  Bb5 {[%clk 0:00:08]} 58. Nc8 {[%clk 0:00:09]}  Bd7 {[%clk 0:00:07]} 59. Nd6 {[%clk 0:00:08]}  Ke7 {[%clk 0:00:05]} 60. Nb7 {[%clk 0:00:06]}  Kf6 {[%clk 0:00:05]} 61. Nc5 {[%clk 0:00:06]}  Bb5 {[%clk 0:00:06]} 62. Kf2 {[%clk 0:00:05]}  Be8 {[%clk 0:00:04]} 63. Ke3 {[%clk 0:00:05]}  Bb5 {[%clk 0:00:04]} 64. f4 {[%clk 0:00:04]}  exf4+ {[%clk 0:00:03]} 65. Kxf4 {[%clk 0:00:05]}  g5+ {[%clk 0:00:03]} 66. Ke3 {[%clk 0:00:05]}  g4 {[%clk 0:00:03]} 67. Nd3 {[%clk 0:00:05]}  g3 {[%clk 0:00:03]} 68. Nf4 {[%clk 0:00:05]}  Be5 {[%clk 0:00:02]} 69. Ng2 {[%clk 0:00:05]}  Bf1 {[%clk 0:00:01]} 70. Kf3 {[%clk 0:00:05]}  Bd3 {[%clk 0:00:01]} 71. Nce3 {[%clk 0:00:05]} 1-0


[Site "https://www.chess.com"]

[Event "Titled Tuesday Blitz May 25 2021"]
[White "Golubev, Mikhail"]
[Black "Rozen, Eytan"]
[WhiteFideId "14100983"]
[BlackFideId "2816750"]
[WhiteElo "2374"]
[BlackElo "1963"]
[Result "1-0"]
[Round "05"]
[TimeControl "180+1"]
[Date "2021.05.25"]
[WhiteClock "0:00:37"]
[BlackClock "0:00:02"]

1. e4 {[%clk 0:03:00]}  c5 {[%clk 0:02:59]} 2. Nf3 {[%clk 0:03:00]}  e6 {[%clk 0:03:00]} 3. d4 {[%clk 0:03:00]}  cxd4 {[%clk 0:03:01]} 4. Nxd4 {[%clk 0:03:00]}  a6 {[%clk 0:03:01]} 5. Bd3 {[%clk 0:03:00]}  Qc7 {[%clk 0:03:01]} 6. O-O {[%clk 0:02:59]}  Nf6 {[%clk 0:03:02]} 7. Qe2 {[%clk 0:02:59]}  Nc6 {[%clk 0:03:01]} 8. Nxc6 {[%clk 0:02:56]}  dxc6 {[%clk 0:02:43]} 9. e5 {[%clk 0:02:47]}  Nd7 {[%clk 0:02:22]} 10. Re1 {[%clk 0:02:25]}  Be7 {[%clk 0:02:08]} 11. c3 {[%clk 0:02:16]}  b5 {[%clk 0:02:04]} 12. Nd2 {[%clk 0:02:15]}  Bb7 {[%clk 0:02:02]} 13. a4 {[%clk 0:02:12]}  Rd8 {[%clk 0:01:48]} 14. Nf3 {[%clk 0:02:10]}  Nc5 {[%clk 0:01:33]} 15. Bc2 {[%clk 0:02:05]}  Nxa4 {[%clk 0:01:30]} 16. Bxa4 {[%clk 0:02:03]}  bxa4 {[%clk 0:01:31]} 17. Rxa4 {[%clk 0:02:02]}  c5 {[%clk 0:01:29]} 18. Rg4 {[%clk 0:02:01]}  g6 {[%clk 0:01:27]} 19. Bh6 {[%clk 0:02:00]}  Qc6 {[%clk 0:01:19]} 20. Bg7 {[%clk 0:01:57]}  Rg8 {[%clk 0:01:18]} 21. Bf6 {[%clk 0:01:56]}  h5 {[%clk 0:01:03]} 22. Rg3 {[%clk 0:01:54]}  Qd5 {[%clk 0:00:42]} 23. Bxe7 {[%clk 0:01:44]}  Kxe7 {[%clk 0:00:42]} 24. Qe3 {[%clk 0:01:45]}  Kd7 {[%clk 0:00:36]} 25. h4 {[%clk 0:01:43]}  Kc7 {[%clk 0:00:33]} 26. Ng5 {[%clk 0:01:42]}  Rd7 {[%clk 0:00:33]} 27. Rf3 {[%clk 0:01:37]}  Rf8 {[%clk 0:00:21]} 28. Nh7 {[%clk 0:01:31]}  Rfd8 {[%clk 0:00:19]} 29. Nf6 {[%clk 0:01:31]}  Qc4 {[%clk 0:00:15]} 30. Nxd7 {[%clk 0:01:31]}  Bxf3 {[%clk 0:00:15]} 31. Qxc5+ {[%clk 0:01:18]}  Qxc5 {[%clk 0:00:15]} 32. Nxc5 {[%clk 0:01:18]}  Bb7 {[%clk 0:00:16]} 33. Nxb7 {[%clk 0:01:12]}  Kxb7 {[%clk 0:00:17]} 34. Re4 {[%clk 0:01:10]}  Rd5 {[%clk 0:00:12]} 35. Rf4 {[%clk 0:01:08]}  Kc6 {[%clk 0:00:12]} 36. Rxf7 {[%clk 0:01:08]}  Rxe5 {[%clk 0:00:13]} 37. Rf6 {[%clk 0:01:06]}  Kd5 {[%clk 0:00:10]} 38. Rxg6 {[%clk 0:01:05]}  Kc4 {[%clk 0:00:11]} 39. Rg5 {[%clk 0:01:01]}  Re1+ {[%clk 0:00:11]} 40. Kh2 {[%clk 0:01:00]}  Re2 {[%clk 0:00:12]} 41. Rxh5 {[%clk 0:00:57]}  Rxf2 {[%clk 0:00:10]} 42. Ra5 {[%clk 0:00:56]}  Rxb2 {[%clk 0:00:08]} 43. Rxa6 {[%clk 0:00:56]}  e5 {[%clk 0:00:07]} 44. h5 {[%clk 0:00:53]}  Rb7 {[%clk 0:00:06]} 45. Re6 {[%clk 0:00:48]}  Kd5 {[%clk 0:00:05]} 46. Rg6 {[%clk 0:00:43]}  Rh7 {[%clk 0:00:04]} 47. g4 {[%clk 0:00:42]}  Ke4 {[%clk 0:00:05]} 48. Kg3 {[%clk 0:00:41]}  Kd3 {[%clk 0:00:05]} 49. Rd6+ {[%clk 0:00:38]}  Kxc3 {[%clk 0:00:04]} 50. h6 {[%clk 0:00:38]}  e4 {[%clk 0:00:01]} 51. Kf4 {[%clk 0:00:38]}  Kc4 {[%clk 0:00:02]} 52. Kxe4 {[%clk 0:00:37]}  Kc5 {[%clk 0:00:03]} 53. Re6 {[%clk 0:00:37]}  Ra7 {[%clk 0:00:02]} 54. g5 {[%clk 0:00:37]} 1-0


[Site "https://www.chess.com"]